fUST/lending_fUST_20250531
["ID","MTS","AMOUNT","RATE_DAILY","PERIOD"]
[363373743,1748701853679,-1000.0,0.00020021,2]
[363373744,1748701853689,-1000.0,0.00020021,2]
[363373745,1748701853698,-1200.0,0.00020021,2]
[363373746,1748701853707,-1000.0,0.00020021,2]
[363373747,1748701853719,-625.26263881,0.0002007,2]
[363373748,1748701853728,-1196.12901374,0.00020072,2]
[363373749,1748701853738,-823.0,0.00020163,2]
[363373750,1748701853748,-170.11596537,0.00020225,2]
[363373751,1748701853757,-398.75041011,0.00020273,2]
[363373752,1748701853766,-430.0,0.00020273,2]
[363373753,1748701853776,-697.77,0.00020273,2]
[363373754,1748701853785,-430.0,0.00020273,2]
[363373755,1748701853795,-430.0,0.00020273,2]
[363373756,1748701853804,-1363.21,0.00020273,2]
[363373757,1748701853813,-430.0,0.00020273,2]
[363373758,1748701853823,-658.26,0.00020273,2]
[363373759,1748701853832,-430.0,0.00020273,2]
[363373760,1748701853842,-545.27775627,0.00020273,2]
[363373761,1748701853851,-823.82,0.00020273,2]
[363373762,1748701853860,-430.0,0.00020273,2]
[363373763,1748701853871,-430.0,0.00020273,2]
[363373764,1748701853880,-1045.12,0.00020273,2]
[363373765,1748701853890,-1042.02,0.00020273,2]
[363373766,1748701853899,-1392.42,0.00020273,2]
[363373767,1748701853909,-1371.02,0.00020273,2]
[363373768,1748701853919,-430.0,0.00020273,2]
[363373769,1748701853928,-430.0,0.00020273,2]
[363373770,1748701853938,-2919.2,0.00020273,2]
[363373771,1748701853947,-519.87,0.00020273,2]
[363373772,1748701853956,-675.79,0.00020273,2]
[363373773,1748701853967,-482.88,0.00020273,2]
[363373774,1748701853977,-430.0,0.00020273,2]
[363373775,1748701853986,-3090.3,0.00020273,2]
[363373776,1748701853996,-1138.61,0.00020273,2]
[363373777,1748701854005,-430.0,0.00020273,2]
[363373778,1748701854015,-969.3,0.00020273,2]
[363373779,1748701854025,-1948.36,0.00020273,2]
[363373780,1748701854035,-2503.72,0.00020273,2]
[363373781,1748701854045,-430.0,0.00020273,2]
[363373782,1748701854055,-499.05,0.00020273,2]
[363373783,1748701854064,-809.48,0.00020273,2]
[363373784,1748701854073,-881.69,0.00020273,2]
[363373785,1748701854083,-444.14,0.00020273,2]
[363373786,1748701854092,-1040.19,0.00020273,2]
[363373787,1748701854101,-2229.64,0.00020273,2]
[363373788,1748701854110,-430.0,0.00020273,2]
[363373789,1748701854119,-430.0,0.00020273,2]
[363373790,1748701854128,-443.18,0.00020273,2]
[363373791,1748701854137,-1115.27,0.00020273,2]
[363373792,1748701854145,-486.49,0.00020273,2]
[363373793,1748701854154,-1196.12901374,0.00020314,3]
[363373794,1748701854163,-625.26263881,0.00020387,2]
[363373795,1748701854172,-500.0,0.00020464,2]
[363373796,1748701854183,-1000.0,0.00020521,2]
[363373797,1748701854193,-1000.0,0.00020521,2]
[363373798,1748701854203,-1000.0,0.00020521,2]
[363373799,1748701854212,-1000.0,0.00020521,2]
[363373800,1748701854222,-500.0,0.00020529,2]
[363373801,1748701854231,-430.0,0.00020547,2]
[363373802,1748701854240,-697.77,0.00020547,2]
[363373803,1748701854250,-430.0,0.00020547,2]
[363373804,1748701854259,-430.0,0.00020547,2]
[363373805,1748701854268,-1363.21,0.00020547,2]
[363373806,1748701854277,-486.63,0.00020547,2]
[363373807,1748701854286,-658.26,0.00020547,2]
[363373808,1748701854296,-162.95621617,0.00020547,2]
[363373809,1748701854305,-823.82,0.00020547,2]
[363373810,1748701854314,-430.0,0.00020547,2]
[363373811,1748701854323,-430.0,0.00020547,2]
[363373812,1748701854333,-1045.12,0.00020547,2]
[363373813,1748701854342,-1042.02,0.00020547,2]
[363373814,1748701854351,-1392.42,0.00020547,2]
[363373815,1748701854361,-1371.02,0.00020547,2]
[363373816,1748701854370,-430.0,0.00020547,2]
[363373817,1748701854379,-430.0,0.00020547,2]
[363373818,1748701854388,-2919.2,0.00020547,2]
[363373819,1748701854397,-519.87,0.00020547,2]
[363373820,1748701854407,-675.79,0.00020547,2]
[363373821,1748701854416,-482.88,0.00020547,2]
[363373822,1748701854426,-430.0,0.00020547,2]
[363373823,1748701854435,-3090.3,0.00020547,2]
[363373824,1748701854444,-1138.61,0.00020547,2]
[363373825,1748701854453,-430.0,0.00020547,2]
[363373826,1748701854461,-969.3,0.00020547,2]
[363373827,1748701854472,-1948.36,0.00020547,2]
[363373828,1748701854481,-2503.72,0.00020547,2]
[363373829,1748701854490,-430.0,0.00020547,2]
[363373830,1748701854499,-499.05,0.00020547,2]
[363373831,1748701854508,-809.48,0.00020547,2]
[363373832,1748701854518,-881.69,0.00020547,2]
[363373833,1748701854528,-444.14,0.00020547,2]
[363373834,1748701854538,-1040.19,0.00020547,2]
[363373835,1748701854547,-2229.64,0.00020547,2]
[363373836,1748701854556,-430.0,0.00020547,2]
[363373837,1748701854565,-500.63933886,0.00020547,2]
[363373838,1748701854574,-443.18,0.00020547,2]
[363373839,1748701854583,-1115.27,0.00020547,2]
[363373840,1748701854592,-486.49,0.00020547,2]
[363373841,1748701854601,-1196.12901374,0.00020555,3]
[363373842,1748701854611,-1500.0,0.00020568,2]
[363373843,1748701854621,-1800.0,0.00020568,2]
[363373844,1748701854630,-500.0,0.00020592,2]
[363373845,1748701854639,-505.86713011,0.00020592,2]
[363373846,1748701854649,-500.0,0.00020592,2]
[363373847,1748701854658,-500.0,0.00020592,2]
[363373848,1748701854667,-264.73534657,0.00020592,2]
[363373849,1748701854676,-8905.98,0.000206,2]
[363373850,1748701854686,-44098.95275917,0.000206,2]
[363373851,1748701855453,-257.9694482,0.00016437,2]
[363373852,1748701855463,-500.0,0.00016437,2]
[363373853,1748701855475,-500.0,0.00016437,2]
[363373854,1748701855484,-500.0,0.00016437,2]
[363373855,1748701855493,-443.67421125,0.00016437,2]
[363373856,1748701855503,-500.0,0.00016437,2]
[363373857,1748701855512,-500.0,0.00016437,2]
[363373858,1748701855523,-430.0,0.00016438,2]
[363373859,1748701855535,-430.0,0.00016712,2]
[363373860,1748701855545,-281.17513207,0.00016712,2]
[363373861,1748701855555,-430.0,0.00016986,2]
[363373862,1748701855565,-430.0,0.0001726,2]
[363373863,1748701855575,-430.0,0.00017534,2]
[363373864,1748701855585,-430.0,0.00017808,2]
[363373865,1748701855595,-430.0,0.00018082,2]
[363373866,1748701855606,-424.28933794,0.00018356,2]
[363373867,1748701855616,-430.0,0.00019452,2]
[363373868,1748701855626,-430.0,0.00019726,2]
[363373869,1748701855635,-430.0,0.0002,2]
[363373870,1748701855644,-14821.01724083,0.000206,2]
[363373871,1748701855654,-625.26263882,0.00020793,2]
[363373872,1748701855663,-1196.12901374,0.00020797,4]
[363373873,1748701855673,-430.0,0.00020821,2]
[363373874,1748701855682,-697.77,0.00020821,2]
[363373875,1748701855691,-1363.21,0.00020821,2]
[363373876,1748701855701,-658.26,0.00020821,2]
[363373877,1748701855711,-823.82,0.00020821,2]
[363373878,1748701855722,-430.0,0.00020821,2]
[363373879,1748701855732,-430.0,0.00020821,2]
[363373880,1748701855741,-1045.12,0.00020821,2]
[363373881,1748701855751,-1042.02,0.00020821,2]
[363373882,1748701855760,-1392.42,0.00020821,2]
[363373883,1748701855769,-1371.02,0.00020821,2]
[363373884,1748701855779,-430.0,0.00020821,2]
[363373885,1748701855789,-430.0,0.00020821,2]
[363373886,1748701855799,-2919.2,0.00020821,2]
[363373887,1748701855808,-519.87,0.00020821,2]
[363373888,1748701855818,-675.79,0.00020821,2]
[363373889,1748701855828,-482.88,0.00020821,2]
[363373890,1748701855837,-542.57,0.00020821,2]
[363373891,1748701855847,-3090.3,0.00020821,2]
[363373892,1748701855856,-1138.61,0.00020821,2]
[363373893,1748701855865,-482.69963375,0.00020821,2]
[363373894,1748701855876,-969.3,0.00020821,2]
[363373895,1748701855885,-1948.36,0.00020821,2]
[363373896,1748701855894,-2503.72,0.00020821,2]
[363373897,1748701855903,-430.0,0.00020821,2]
[363373898,1748701855913,-45.46334338,0.00020821,2]
[363373899,1748701855925,-453.58665662,0.00020821,2]
[363373900,1748701855935,-809.48,0.00020821,2]
[363373901,1748701855944,-555.12404323,0.00020821,2]
[363373902,1748701855956,-326.56595677,0.00020821,2]
[363373903,1748701855966,-444.14,0.00020821,2]
[363373904,1748701855976,-1040.19,0.00020821,2]
[363373905,1748701855985,-2229.64,0.00020821,2]
[363373906,1748701855995,-430.0,0.00020821,2]
[363373907,1748701856005,-160.0,0.00020821,2]
[363373908,1748701856015,-443.18,0.00020821,2]
[363373909,1748701856024,-1115.27,0.00020821,2]
[363373910,1748701856034,-486.49,0.00020821,2]
[363373911,1748701856043,-5180.71,0.00020922,2]
[363373912,1748701856054,-500.0,0.00020943,2]
[363373913,1748701856069,-500.0,0.00020943,2]
[363373914,1748701856086,-3000.0,0.0002101,2]
[363373915,1748701856099,-1000.0,0.00021012,2]
[363373916,1748701856113,-3000.0,0.0002102,2]
[363373917,1748701856127,-3000.0,0.0002103,2]
[363373918,1748701856142,-1196.12901374,0.00021038,4]
[363373919,1748701856156,-3000.0,0.0002104,2]
[363373920,1748701856171,-3000.0,0.0002105,2]
[363373921,1748701856187,-3000.0,0.0002106,2]
[363373922,1748701856200,-600.0,0.0002106,2]
[363373923,1748701856213,-3000.0,0.0002107,2]
[363373924,1748701856228,-1000.0,0.00021077,2]
[363373925,1748701856242,-3000.0,0.0002108,2]
[363373926,1748701856256,-3000.0,0.0002109,2]
[363373927,1748701856267,-430.0,0.00021095,2]
[363373928,1748701856279,-697.77,0.00021095,2]
[363373929,1748701856293,-1363.21,0.00021095,2]
[363373930,1748701856308,-658.26,0.00021095,2]
[363373931,1748701856322,-823.82,0.00021095,2]
[363373932,1748701856337,-430.0,0.00021095,2]
[363373933,1748701856352,-195.76,0.00021095,2]
[363373934,1748701856365,-1045.12,0.00021095,2]
[363373935,1748701856376,-1042.02,0.00021095,2]
[363373936,1748701856388,-1392.42,0.00021095,2]
[363373937,1748701856404,-1371.02,0.00021095,2]
[363373938,1748701856418,-478.62,0.00021095,2]
[363373939,1748701856428,-430.0,0.00021095,2]
[363373940,1748701856440,-2919.2,0.00021095,2]
[363373941,1748701856454,-519.87,0.00021095,2]
[363373942,1748701856467,-675.79,0.00021095,2]
[363373943,1748701856478,-482.88,0.00021095,2]
[363373944,1748701856489,-3090.3,0.00021095,2]
[363373945,1748701856501,-1138.61,0.00021095,2]
[363373946,1748701856513,-969.3,0.00021095,2]
[363373947,1748701856528,-1948.36,0.00021095,2]
[363373948,1748701856540,-2503.72,0.00021095,2]
[363373949,1748701856552,-430.0,0.00021095,2]
[363373950,1748701856566,-499.05,0.00021095,2]
[363373951,1748701856580,-809.48,0.00021095,2]
[363373952,1748701856594,-881.69,0.00021095,2]
[363373953,1748701856607,-444.14,0.00021095,2]
[363373954,1748701856619,-1040.19,0.00021095,2]
[363373955,1748701856632,-2229.64,0.00021095,2]
[363373956,1748701856644,-417.73,0.00021095,2]
[363373957,1748701856658,-443.18,0.00021095,2]
[363373958,1748701856671,-1115.27,0.00021095,2]
[363373959,1748701856685,-486.49,0.00021095,2]
[363373960,1748701856697,-3000.0,0.000211,2]
[363373961,1748701856710,-313.23,0.000211,2]
[363373962,1748701856722,-1020.18,0.000211,2]
[363373963,1748701856735,-3000.0,0.0002111,2]
[363373964,1748701856747,-2000.0,0.00021116,2]
[363373965,1748701856761,-3000.0,0.0002112,2]
[363373966,1748701856774,-3000.0,0.0002113,2]
[363373967,1748701856786,-3000.0,0.0002114,2]
[363373968,1748701856799,-224.53576733,0.0002114,2]
[363373969,1748701856811,-1000.0,0.0002114,2]
[363373970,1748701856822,-1000.0,0.0002114,2]
[363373971,1748701856832,-3000.0,0.0002115,2]
[363373972,1748701856841,-3000.0,0.0002116,2]
[363373973,1748701856851,-3000.0,0.0002117,2]
[363373974,1748701856861,-3000.0,0.0002118,2]
[363373975,1748701856871,-3000.0,0.0002119,2]
[363373976,1748701856880,-3000.0,0.000212,2]
[363373977,1748701856890,-776.8203549,0.000212,2]
[363373978,1748701856900,-3000.0,0.0002121,2]
[363373979,1748701856910,-3000.0,0.0002122,2]
[363373980,1748701856920,-3000.0,0.0002123,2]
[363373981,1748701856931,-3000.0,0.0002124,2]
[363373982,1748701856940,-3000.0,0.0002125,2]
[363373983,1748701856950,-3000.0,0.0002126,2]
[363373984,1748701856960,-3000.0,0.0002127,2]
[363373985,1748701856970,-1196.12901374,0.00021279,5]
[363373986,1748701856979,-3000.0,0.0002128,2]
[363373987,1748701856989,-3000.0,0.0002129,2]
[363373988,1748701856998,-3000.0,0.000213,2]
[363373989,1748701857007,-3000.0,0.0002131,2]
[363373990,1748701857016,-3000.0,0.0002132,2]
[363373991,1748701857026,-3000.0,0.0002133,2]
[363373992,1748701857035,-3000.0,0.0002134,2]
[363373993,1748701857044,-3000.0,0.0002135,2]
[363373994,1748701857054,-3000.0,0.0002136,2]
[363373995,1748701857063,-430.0,0.00021369,2]
[363373996,1748701857073,-697.77,0.00021369,2]
[363373997,1748701857082,-1363.21,0.00021369,2]
[363373998,1748701857092,-658.26,0.00021369,2]
[363373999,1748701857101,-823.82,0.00021369,2]
[363374000,1748701857111,-430.0,0.00021369,2]
[363374001,1748701857121,-1045.12,0.00021369,2]
[363374002,1748701857130,-1042.02,0.00021369,2]
[363374003,1748701857140,-1392.42,0.00021369,2]
[363374004,1748701857149,-1371.02,0.00021369,2]
[363374005,1748701857159,-430.0,0.00021369,2]
[363374006,1748701857169,-2919.2,0.00021369,2]
[363374007,1748701857179,-519.87,0.00021369,2]
[363374008,1748701857189,-675.79,0.00021369,2]
[363374009,1748701857199,-482.88,0.00021369,2]
[363374010,1748701857208,-3090.3,0.00021369,2]
[363374011,1748701857218,-1138.61,0.00021369,2]
[363374012,1748701857228,-969.3,0.00021369,2]
[363374013,1748701857238,-1948.36,0.00021369,2]
[363374014,1748701857247,-2503.72,0.00021369,2]
[363374015,1748701857257,-430.0,0.00021369,2]
[363374016,1748701857266,-499.05,0.00021369,2]
[363374017,1748701857276,-809.48,0.00021369,2]
[363374018,1748701857285,-881.69,0.00021369,2]
[363374019,1748701857295,-444.14,0.00021369,2]
[363374020,1748701857304,-1040.19,0.00021369,2]
[363374021,1748701857313,-2229.64,0.00021369,2]
[363374022,1748701857323,-443.18,0.00021369,2]
[363374023,1748701857332,-1115.27,0.00021369,2]
[363374024,1748701857342,-486.49,0.00021369,2]
[363374025,1748701857351,-3000.0,0.0002137,2]
[363374026,1748701857361,-250.0,0.00021373,2]
[363374027,1748701857636,-3000.0,0.0002138,2]
[363374028,1748701857650,-151.0,0.00021388,25]
[363374029,1748701857659,-3000.0,0.0002139,2]
[363374030,1748701857669,-3000.0,0.000214,2]
[363374031,1748701857679,-3000.0,0.0002141,2]
[363374032,1748701857688,-3000.0,0.0002142,2]
[363374033,1748701857698,-3000.0,0.0002143,2]
[363374034,1748701857707,-4183.81228,0.0002144,2]
[363374035,1748701857719,-630.0,0.00021449,2]
[363374036,1748701857731,-1000.0,0.00021491,2]
[363374037,1748701857741,-501.32510502,0.00021491,2]
[363374038,1748701857750,-250.0,0.000215,30]
[363374039,1748701857760,-1196.12901374,0.00021521,5]
[363374040,1748701857769,-297.49248903,0.0002156,2]
[363374041,1748701857781,-151.0,0.00021576,27]
[363374042,1748701857790,-430.0,0.00021643,2]
[363374043,1748701857799,-697.77,0.00021643,2]
[363374044,1748701857809,-1363.21,0.00021643,2]
[363374045,1748701857819,-658.26,0.00021643,2]
[363374046,1748701857829,-823.82,0.00021643,2]
[363374047,1748701857838,-430.0,0.00021643,2]
[363374048,1748701857848,-1045.12,0.00021643,2]
[363374049,1748701857856,-1042.02,0.00021643,2]
[363374050,1748701857866,-1392.42,0.00021643,2]
[363374051,1748701857875,-1371.02,0.00021643,2]
[363374052,1748701857885,-430.0,0.00021643,2]
[363374053,1748701857894,-2919.2,0.00021643,2]
[363374054,1748701857903,-519.87,0.00021643,2]
[363374055,1748701857913,-675.79,0.00021643,2]
[363374056,1748701857922,-482.88,0.00021643,2]
[363374057,1748701857932,-3090.3,0.00021643,2]
[363374058,1748701857942,-1138.61,0.00021643,2]
[363374059,1748701857951,-969.3,0.00021643,2]
[363374060,1748701857960,-1948.36,0.00021643,2]
[363374061,1748701857972,-2503.72,0.00021643,2]
[363374062,1748701857981,-430.0,0.00021643,2]
[363374063,1748701857990,-499.05,0.00021643,2]
[363374064,1748701858000,-809.48,0.00021643,2]
[363374065,1748701858010,-881.69,0.00021643,2]
[363374066,1748701858020,-444.14,0.00021643,2]
[363374067,1748701858030,-1040.19,0.00021643,2]
[363374068,1748701858039,-2229.64,0.00021643,2]
[363374069,1748701858048,-443.18,0.00021643,2]
[363374070,1748701858057,-1115.27,0.00021643,2]
[363374071,1748701858067,-486.49,0.00021643,2]
[363374072,1748701858076,-2500.0,0.00021664,2]
[363374073,1748701858086,-1176.41775351,0.00021688,2]
[363374074,1748701858095,-1000.0,0.00021696,2]
[363374075,1748701858104,-176.4540852,0.00021699,2]
[363374076,1748701858114,-158.4581234,0.00021699,2]
[363374077,1748701858123,-176.4540852,0.00021699,2]
[363374078,1748701858132,-158.4581234,0.00021699,2]
[363374079,1748701858141,-176.4540852,0.00021699,2]
[363374080,1748701858150,-158.4581234,0.00021699,2]
[363374081,1748701858159,-390.3995201,0.00021699,2]
[363374082,1748701858169,-572.2963003,0.00021699,2]
[363374083,1748701858178,-153.0,0.00021699,2]
[363374084,1748701858187,-176.4540852,0.00021753,2]
[363374085,1748701858196,-158.4581234,0.00021753,2]
[363374086,1748701858206,-176.4540852,0.00021753,2]
[363374087,1748701858215,-158.4581234,0.00021753,2]
[363374088,1748701858226,-1196.12901374,0.00021762,5]
[363374089,1748701858235,-151.0,0.00021765,28]
[363374090,1748701858245,-8905.98,0.000218,2]
[363374091,1748701858257,-58919.97,0.000218,2]
[363374092,1748701858267,-4020.33635565,0.00021817,2]
[363374093,1748701858276,-200.0,0.00021917,2]
[363374094,1748701858286,-500.0,0.00021917,2]
[363374095,1748701858296,-430.0,0.00021917,2]
[363374096,1748701858305,-697.77,0.00021917,2]
[363374097,1748701858315,-1363.21,0.00021917,2]
[363374098,1748701858325,-658.26,0.00021917,2]
[363374099,1748701858334,-823.82,0.00021917,2]
[363374100,1748701858343,-253.58423685,0.00021917,2]
[363374101,1748701858353,-1045.12,0.00021917,2]
[363374102,1748701858363,-1042.02,0.00021917,2]
[363374103,1748701858372,-1392.42,0.00021917,2]
[363374104,1748701858382,-1371.02,0.00021917,2]
[363374105,1748701858391,-430.0,0.00021917,2]
[363374106,1748701858400,-2919.2,0.00021917,2]
[363374107,1748701858410,-519.87,0.00021917,2]
[363374108,1748701858420,-675.79,0.00021917,2]
[363374109,1748701858429,-482.88,0.00021917,2]
[363374110,1748701858438,-3090.3,0.00021917,2]
[363374111,1748701858447,-1138.61,0.00021917,2]
[363374112,1748701858456,-969.3,0.00021917,2]
[363374113,1748701858466,-1948.36,0.00021917,2]
[363374114,1748701858477,-2503.72,0.00021917,2]
[363374115,1748701858486,-430.0,0.00021917,2]
[363374116,1748701858496,-499.05,0.00021917,2]
[363374117,1748701858505,-809.48,0.00021917,2]
[363374118,1748701858514,-881.69,0.00021917,2]
[363374119,1748701858525,-444.14,0.00021917,2]
[363374120,1748701858538,-1040.19,0.00021917,2]
[363374121,1748701858548,-2229.64,0.00021917,2]
[363374122,1748701858558,-443.18,0.00021917,2]
[363374123,1748701858567,-1115.27,0.00021917,2]
[363374124,1748701858579,-486.49,0.00021917,2]
[363374125,1748701858588,-176.4540852,0.00021918,2]
[363374126,1748701858598,-572.2963003,0.00021918,2]
[363374127,1748701858608,-158.4581234,0.00021918,2]
[363374128,1748701858617,-176.4540852,0.00021918,2]
[363374129,1748701858627,-572.2963003,0.00021918,2]
[363374130,1748701858637,-158.4581234,0.00021918,2]
[363374131,1748701858650,-500.0,0.00021918,2]
[363374132,1748701858660,-500.0,0.00021918,2]
[363374133,1748701858670,-500.0,0.00021918,2]
[363374134,1748701858680,-500.0,0.00021918,2]
[363374135,1748701858690,-500.0,0.00021918,2]
[363374136,1748701858699,-500.0,0.00021918,2]
[363374137,1748701858708,-500.0,0.00021918,2]
[363374138,1748701858718,-311.03165668,0.00021918,2]
[363374139,1748701858728,-500.0,0.00021918,2]
[363374140,1748701858737,-500.0,0.00021918,2]
[363374141,1748701858747,-500.0,0.00021918,2]
[363374142,1748701858756,-500.0,0.00021918,2]
[363374143,1748701858765,-500.0,0.00021918,2]
[363374144,1748701858775,-500.0,0.00021918,2]
[363374145,1748701858785,-500.0,0.00021918,2]
[363374146,1748701858794,-500.0,0.00021918,2]
[363374147,1748701858805,-151.0,0.00021953,30]
[363374148,1748701858815,-6804.02571048,0.00021998,2]
[363374149,1748701858824,-176.4540852,0.00022,2]
[363374150,1748701858834,-158.4581234,0.00022,2]
[363374151,1748701858844,-364.176416,0.00022,2]
[363374152,1748701858853,-572.2963003,0.00022,2]
[363374153,1748701858863,-176.4540852,0.00022,2]
[363374154,1748701858872,-158.4581234,0.00022,2]
[363374155,1748701858881,-572.2963003,0.00022,2]
[363374156,1748701858891,-1362.29,0.00022,2]
[363374157,1748701858901,-173.0,0.00022,2]
[363374158,1748701858911,-212.77096907,0.00022,3]
[363374159,1748701858920,-282.0,0.00022,2]
[363374160,1748701858930,-1196.12901374,0.00022003,6]
[363374161,1748701858939,-4020.33635556,0.00022072,2]
[363374162,1748701858949,-151.0,0.00022141,30]
[363374163,1748701858958,-600.0,0.00022156,2]
[363374164,1748701858970,-577.53,0.00022191,2]
[363374165,1748701858980,-697.77,0.00022191,2]
[363374166,1748701858989,-1363.21,0.00022191,2]
[363374167,1748701858999,-658.26,0.00022191,2]
[363374168,1748701859008,-823.82,0.00022191,2]
[363374169,1748701859018,-1045.12,0.00022191,2]
[363374170,1748701859028,-1042.02,0.00022191,2]
[363374171,1748701859037,-1392.42,0.00022191,2]
[363374172,1748701859047,-1371.02,0.00022191,2]
[363374173,1748701859056,-430.0,0.00022191,2]
[363374174,1748701859066,-2919.2,0.00022191,2]
[363374175,1748701859076,-519.87,0.00022191,2]
[363374176,1748701859085,-675.79,0.00022191,2]
[363374177,1748701859095,-482.88,0.00022191,2]
[363374178,1748701859105,-3090.3,0.00022191,2]
[363374179,1748701859114,-1138.61,0.00022191,2]
[363374180,1748701859124,-969.3,0.00022191,2]
[363374181,1748701859133,-1948.36,0.00022191,2]
[363374182,1748701859143,-2503.72,0.00022191,2]
[363374183,1748701859152,-430.0,0.00022191,2]
[363374184,1748701859161,-499.05,0.00022191,2]
[363374185,1748701859170,-809.48,0.00022191,2]
[363374186,1748701859180,-881.69,0.00022191,2]
[363374187,1748701859190,-444.14,0.00022191,2]
[363374188,1748701859199,-1040.19,0.00022191,2]
[363374189,1748701859208,-160.0,0.00022191,2]
[363374190,1748701859218,-2229.64,0.00022191,2]
[363374191,1748701859227,-443.18,0.00022191,2]
[363374192,1748701859237,-1115.27,0.00022191,2]
[363374193,1748701859247,-486.49,0.00022191,2]
[363374194,1748701859256,-282.0,0.00022192,7]
[363374195,1748701859265,-3000.0,0.00022212,2]
[363374196,1748701859275,-1196.12901374,0.00022245,6]
[363374197,1748701859284,-313.23,0.000223,7]
[363374198,1748701859294,-1020.18,0.000223,7]
[363374199,1748701859304,-4020.33635556,0.00022327,2]
[363374200,1748701859315,-151.0,0.00022329,30]
[363374201,1748701859324,-261.900668,0.000224,7]
[363374202,1748701859334,-261.900668,0.000224,7]
[363374203,1748701859344,-151.0,0.000224,7]
[363374204,1748701859354,-152.20578016,0.0002242,2]
[363374205,1748701859363,-151.0,0.0002242,2]
[363374206,1748701859373,-151.0,0.0002242,2]
[363374207,1748701859382,-151.0,0.0002242,2]
[363374208,1748701859395,-151.0,0.0002242,2]
[363374209,1748701859408,-183.24414741,0.0002242,2]
[363374210,1748701859418,-207.4,0.0002242,2]
[363374211,1748701859427,-2424.12057977,0.0002242,2]
[363374212,1748701859437,-500.0,0.00022465,2]
[363374213,1748701859446,-697.77,0.00022465,2]
[363374214,1748701859455,-1363.21,0.00022465,2]
[363374215,1748701859465,-658.26,0.00022465,2]
[363374216,1748701859476,-823.82,0.00022465,2]
[363374217,1748701859486,-1045.12,0.00022465,2]
[363374218,1748701859496,-1042.02,0.00022465,2]
[363374219,1748701859505,-1392.42,0.00022465,2]
[363374220,1748701859515,-1371.02,0.00022465,2]
[363374221,1748701859528,-430.0,0.00022465,2]
[363374222,1748701859538,-2919.2,0.00022465,2]
[363374223,1748701859547,-519.87,0.00022465,2]
[363374224,1748701859556,-675.79,0.00022465,2]
[363374225,1748701859565,-482.88,0.00022465,2]
[363374226,1748701859578,-3090.3,0.00022465,2]
[363374227,1748701859587,-1138.61,0.00022465,2]
[363374228,1748701859597,-969.3,0.00022465,2]
[363374229,1748701859608,-1948.36,0.00022465,2]
[363374230,1748701859621,-2503.72,0.00022465,2]
[363374231,1748701859632,-430.0,0.00022465,2]
[363374232,1748701859642,-499.05,0.00022465,2]
[363374233,1748701859651,-809.48,0.00022465,2]
[363374234,1748701859661,-881.69,0.00022465,2]
[363374235,1748701859671,-444.14,0.00022465,2]
[363374236,1748701859680,-1040.19,0.00022465,2]
[363374237,1748701859689,-2229.64,0.00022465,2]
[363374238,1748701859699,-443.18,0.00022465,2]
[363374239,1748701859708,-1115.27,0.00022465,2]
[363374240,1748701859719,-486.49,0.00022465,2]
[363374241,1748701859728,-1196.12901374,0.00022486,7]
[363374242,1748701859737,-151.0,0.00022518,30]